[Event "EYTCC U18 Girls 2019"]
[Site "Pardubice"]
[Date "2019.07.15"]
[Round "5.37"]
[White "Tarasenka, Aliaksandra"]
[Black "Kuhar, Larisa"]
[Result "1-0"]
[ECO "A57"]
[WhiteElo "2231"]
[BlackElo "1894"]
[Annotator "ChessBase"]
[PlyCount "73"]
[EventDate "2019.07.11"]
[EventType "swiss"]
[EventCountry "CZE"]
[SourceTitle "playchess.com"]
[Source "ChessBase"]
[SourceQuality "1"]
[WhiteTeam "Belarus"]
[BlackTeam "Slovenia"]
[WhiteTeamCountry "BLR"]
[BlackTeamCountry "SLO"]
[TimeControl "40/5400+30:1800+30"]

1. d4 {[%emt 0:00:00]} Nf6 {[%emt 0:00:00]} 2. c4 {[%emt 0:00:00]} c5 {[%emt 0:00:00]} 3. d5 {[%emt 0:00:00]} b5 {[%emt 0:00:00]} 4. Nd2 {[%emt 0:00:08]} bxc4 {[%emt 0:03:58]} 5. e4 {[%emt 0:00:10]} d6 {[%emt 0:02:33]} 6. Bxc4 {[%emt 0:00:32]} g6 {[%emt 0:00:35]} 7. b3 {[%emt 0:01:13]} Bg7 {[%emt 0:00:39]} 8. Bb2 {[%emt 0:00:25]} O-O {[%emt 0:01:34]} 9. Qc2 {[%emt 0:04:37]} Ba6 {[%emt 0:08:20]} 10. Ngf3 {[%emt 0:01:48]} Bxc4 {[%emt 0:03:04]} 11. bxc4 {[%emt 0:04:23]} Nbd7 {[%emt 0:02:16]} 12. O-O {[%emt 0:05:00]} Qc7 {[%emt 0:08:15]} 13. Rfe1 {[%emt 0:02:32]} Ng4 {[%emt 0:11:19]} 14. Bxg7 {[%emt 0:04:40]} Kxg7 {[%emt 0:00:01]} 15. Qc3+ {[%emt 0:02:03]} Kg8 {[%emt 0:01:09]} 16. h3 {[%emt 0:08:01]} Nge5 {[%emt 0:06:34]} 17. Nh2 {[%emt 0:06:38]} Nb6 {[%emt 0:06:30]} 18. f4 {[%emt 0:03:43]} Ned7 {[%emt 0:00:39]} 19. e5 {[%emt 0:04:50]} Na4 {[%emt 0:10:17]} 20. Qg3 {[%emt 0:09:57]} Rab8 {[%emt 0:03:43]} 21. Ng4 {[%emt 0:05:00]} Kh8 {[%emt 0:09:04]} 22. Qh4 {[%emt 0:05:16]} Qd8 {[%emt 0:13:21]} 23. Qh6 {[%emt 0:08:25]} f5 {[%emt 0:02:47]} 24. Nf3 {[%emt 0:02:00]} Rg8 {[%emt 0:03:28]} 25. Ng5 {[%emt 0:00:44]} Rg7 {[%emt 0:00:13]} 26. Ne6 {[%emt 0:00:30]} Qg8 {[%emt 0:00:11]} 27. Qxg7+ {[%emt 0:00:38]} Qxg7 {[%emt 0:00:02]} 28. Nxg7 {[%emt 0:00:06]} Kxg7 {[%emt 0:00:04]} 29. exd6 {[%emt 0:00:22]} exd6 {[%emt 0:01:32]} 30. Re7+ {[%emt 0:00:06]} Kf8 {[%emt 0:00:17]} 31. Rxd7 {[%emt 0:00:07]} fxg4 {[%emt 0:00:06]} 32. Rxa7 {[%emt 0:00:54]} Nc3 {[%emt 0:01:42]} 33. hxg4 {[%emt 0:00:22]} Rb4 {[%emt 0:01:16]} 34. a4 {[%emt 0:00:49]} Rxc4 {[%emt 0:00:09]} 35. a5 {[%emt 0:01:19]} Nxd5 {[%emt 0:01:01]} 36. a6 {[%emt 0:00:20]} Nb4 {[%emt 0:00:44]} 37. Rxh7 {[%emt 0:00:18]} 1-0

[Event "EYTCC U18 Girls 2019"]
[Site "Pardubice"]
[Date "2019.07.15"]
[Round "5.38"]
[White "Kralj, Nika"]
[Black "Kuzich, Aryna"]
[Result "0-1"]
[ECO "B29"]
[WhiteElo "1807"]
[BlackElo "1902"]
[Annotator "NA"]
[PlyCount "62"]
[EventDate "2019.07.11"]
[EventType "swiss"]
[EventCountry "CZE"]
[SourceTitle "playchess.com"]
[Source "ChessBase"]
[SourceQuality "1"]
[WhiteTeam "Slovenia"]
[BlackTeam "Belarus"]
[WhiteTeamCountry "SLO"]
[BlackTeamCountry "BLR"]
[TimeControl "40/5400+30:1800+30"]

1. e4 {[%emt 0:00:00]} c5 {[%emt 0:00:00]} 2. Nf3 {[%emt 0:00:00]} Nf6 {[%emt 0:00:00]} 3. e5 {[%emt 0:00:00]} Nd5 {[%emt 0:00:00]} 4. Nc3 {[%emt 0:00:00]} e6 {[%emt 0:00:03]} 5. Nxd5 {[%emt 0:00:25]} exd5 {[%emt 0:00:07]} 6. d4 {[%emt 0:00:04]} d6 {[%emt 0:00:11]} 7. Bb5+ {[%emt 0:00:28]} Nc6 {[%emt 0:02:10]} 8. O-O {[%emt 0:01:05]} h6 {[%emt 0:25:32]} 9. Bf4 {[%emt 0:12:13]} Be6 {[%emt 0:04:57]} 10. c4 {[%emt 0:08:16]} a6 {[%emt 0:13:54]} 11. Ba4 {[%emt 0:00:31]} Be7 {[%emt 0:14:39]} 12. exd6 {[%emt 0:10:44]} Bxd6 {[%emt 0:00:20]} 13. cxd5 {[%emt 0:09:22]} Bxf4 {[%emt 0:09:35]} 14. Bxc6+ {[%emt 0:03:06]} bxc6 {[%emt 0:00:08]} 15. dxe6 {[%emt 0:00:05]} fxe6 {[%emt 0:03:25]} 16. dxc5 {[%emt 0:02:00]} O-O {[%emt 0:01:30]} 17. Qc2 {[%emt 0:01:50]} Rb8 {[%emt 0:03:11]} 18. Rfd1 {[%emt 0:20:30]} Qf6 {[%emt 0:03:37]} 19. b3 {[%emt 0:01:09]} Rb7 {[%emt 0:01:21]} 20. Qe4 {[%emt 0:02:20]} Rc8 {[%emt 0:02:48]} 21. Re1 {[%emt 0:02:34]} Re7 {[%emt 0:00:47]} 22. Nd4 {[%emt 0:02:06]} Bd2 {[%emt 0:00:26]} 23. Red1 {[%emt 0:06:40]} Bc3 {[%emt 0:00:55]} 24. Rac1 {[%emt 0:00:23]} Bb2 {[%emt 0:00:58]} 25. Rc2 {[%emt 0:02:42]} Bxd4 {[%emt 0:00:08]} 26. Rxd4 {[%emt 0:03:11]} Rd7 {[%emt 0:01:13]} 27. Rcd2 {[%emt 0:00:10]} Rcd8 {[%emt 0:00:42]} 28. g3 {[%emt 0:03:09]} Rxd4 {[%emt 0:00:28]} 29. Rxd4 {[%emt 0:00:01]} Qxd4 {[%emt 0:00:53]} 30. Qxe6+ {[%emt 0:00:06]} Kh8 {[%emt 0:00:06]} 31. Qxc6 {[%emt 0:00:04]} Qd1+ {[%emt 0:00:06]} 0-1

[Event "EYTCC U18 Girls 2019"]
[Site "Pardubice"]
[Date "2019.07.15"]
[Round "5.39"]
[White "Cvitan, Ena"]
[Black "Koubova, Anna Marie"]
[Result "1/2-1/2"]
[ECO "E71"]
[WhiteElo "2202"]
[BlackElo "2094"]
[Annotator "NA"]
[PlyCount "88"]
[EventDate "2019.07.11"]
[EventType "swiss"]
[EventCountry "CZE"]
[SourceTitle "playchess.com"]
[Source "ChessBase"]
[SourceQuality "1"]
[WhiteTeam "Croatia"]
[BlackTeam "Czech Republic"]
[WhiteTeamCountry "CRO"]
[BlackTeamCountry "CZE"]
[TimeControl "40/5400+30:1800+30"]

1. d4 {[%emt 0:01:50]} Nf6 {[%emt 0:00:00]} 2. c4 {[%emt 0:00:08]} g6 {[%emt 0:00:00]} 3. Nc3 {[%emt 0:00:05]} Bg7 {[%emt 0:00:00]} 4. e4 {[%emt 0:00:18]} d6 {[%emt 0:00:06]} 5. h3 {[%emt 0:00:17]} O-O {[%emt 0:00:12]} 6. Be3 {[%emt 0:00:05]} c5 {[%emt 0:00:12]} 7. Nf3 {[%emt 0:00:51]} cxd4 {[%emt 0:00:19]} 8. Nxd4 {[%emt 0:00:08]} b6 {[%emt 0:00:07]} 9. g3 {[%emt 0:01:33]} Bb7 {[%emt 0:04:16]} 10. Bg2 {[%emt 0:00:20]} Nbd7 {[%emt 0:00:31]} 11. O-O {[%emt 0:02:08]} Ne5 {[%emt 0:10:08]} 12. b3 {[%emt 0:03:10]} Rc8 {[%emt 0:00:38]} 13. Qd2 {[%emt 0:06:09]} Re8 {[%emt 0:04:08]} 14. Rac1 {[%emt 0:17:54]} Qc7 {[%emt 0:04:19]} 15. a4 {[%emt 0:08:37]} Qb8 {[%emt 0:02:54]} 16. Rfd1 {[%emt 0:10:10]} Ned7 {[%emt 0:03:12]} 17. Qa2 {[%emt 0:05:23]} Nc5 {[%emt 0:03:20]} 18. f3 {[%emt 0:03:58]} Nfd7 {[%emt 0:33:13]} 19. b4 {[%emt 0:03:11]} Na6 {[%emt 0:00:55]} 20. Qb3 {[%emt 0:00:38]} Ne5 {[%emt 0:04:01]} 21. Bf1 {[%emt 0:02:21]} Qa8 {[%emt 0:07:04]} 22. Ra1 {[%emt 0:05:06]} e6 {[%emt 0:04:02]} 23. a5 {[%emt 0:06:36]} bxa5 {[%emt 0:00:57]} 24. Rxa5 {[%emt 0:00:25]} Nb8 {[%emt 0:00:21]} 25. Be2 {[%emt 0:07:07]} Nbc6 {[%emt 0:01:29]} 26. Nxc6 {[%emt 0:00:17]} Nxc6 {[%emt 0:00:18]} 27. Ra2 {[%emt 0:00:12]} d5 {[%emt 0:03:08]} 28. cxd5 {[%emt 0:02:46]} Nxb4 {[%emt 0:01:07]} 29. Qxb4 {[%emt 0:05:39]} Bxc3 {[%emt 0:00:13]} 30. Qb3 {[%emt 0:00:54]} exd5 {[%emt 0:00:23]} 31. Rxa7 {[%emt 0:00:28]} Qb8 {[%emt 0:00:09]} 32. Bf2 {[%emt 0:01:28]} Ba8 {[%emt 0:01:31]} 33. Qxb8 Rxb8 {[%emt 0:00:06]} 34. Bf1 {[%emt 0:04:43]} dxe4 {[%emt 0:03:38]} 35. Bc4 {[%emt 0:00:29]} Red8 {[%emt 0:03:42]} 36. Bxf7+ {[%emt 0:01:29]} Kh8 {[%emt 0:00:13]} 37. Rc1 {[%emt 0:00:57]} exf3 {[%emt 0:05:32]} 38. Rxc3 {[%emt 0:00:21]} Rb1+ {[%emt 0:00:12]} 39. Kh2 {[%emt 0:00:08]} Rb2 {[%emt 0:00:11]} 40. Ra2 {[%emt 0:00:22]} Rdd2 {[%emt 0:00:47]} 41. Rxa8+ {[%emt 0:17:48]} Kg7 {[%emt 0:00:21]} 42. Rxf3 {[%emt 0:00:16]} Rxf2+ {[%emt 0:00:15]} 43. Rxf2 {[%emt 0:00:03]} Rxf2+ {[%emt 0:00:10]} 44. Kg1 {[%emt 0:00:03]} Rxf7 {[%emt 0:00:13]} 1/2-1/2

[Event "EYTCC U18 Girls 2019"]
[Site "Pardubice"]
[Date "2019.07.15"]
[Round "5.40"]
[White "Lhotska, Anna"]
[Black "Bogdanic, Katarina"]
[Result "1-0"]
[ECO "A46"]
[WhiteElo "1922"]
[BlackElo "1955"]
[Annotator "NA"]
[PlyCount "108"]
[EventDate "2019.07.11"]
[EventType "swiss"]
[EventCountry "CZE"]
[SourceTitle "playchess.com"]
[Source "ChessBase"]
[SourceQuality "1"]
[WhiteTeam "Czech Republic"]
[BlackTeam "Croatia"]
[WhiteTeamCountry "CZE"]
[BlackTeamCountry "CRO"]
[TimeControl "40/5400+30:1800+30"]

1. d4 {[%emt 0:00:00]} Nf6 {[%emt 0:00:00]} 2. Nf3 {[%emt 0:00:00]} e6 {[%emt 0:00:18]} 3. Bf4 {[%emt 0:00:00]} c5 {[%emt 0:01:24]} 4. e3 {[%emt 0:00:21]} Nc6 {[%emt 0:02:08]} 5. c3 {[%emt 0:01:29]} d5 {[%emt 0:02:23]} 6. Nbd2 {[%emt 0:02:19]} Bd6 {[%emt 0:01:38]} 7. Ne5 {[%emt 0:08:31]} Qc7 {[%emt 0:09:57]} 8. Ndf3 {[%emt 0:09:01]} O-O {[%emt 0:04:47]} 9. h3 {[%emt 0:02:56]} Nd7 {[%emt 0:05:47]} 10. Nxc6 {[%emt 0:02:54]} bxc6 {[%emt 0:01:50]} 11. Bxd6 {[%emt 0:03:14]} Qxd6 {[%emt 0:00:04]} 12. Bd3 {[%emt 0:01:03]} cxd4 {[%emt 0:06:04]} 13. cxd4 {[%emt 0:03:21]} Rb8 {[%emt 0:09:51]} 14. b3 {[%emt 0:12:01]} Qb4+ {[%emt 0:02:59]} 15. Qd2 {[%emt 0:01:18]} Qxd2+ {[%emt 0:01:01]} 16. Nxd2 {[%emt 0:01:09]} c5 {[%emt 0:02:04]} 17. O-O {[%emt 0:02:10]} e5 {[%emt 0:04:03]} 18. Be2 {[%emt 0:13:10]} Re8 {[%emt 0:06:38]} 19. dxe5 {[%emt 0:02:17]} Rxe5 {[%emt 0:04:16]} 20. Rfd1 {[%emt 0:16:41]} Re7 {[%emt 0:11:17]} 21. Bf3 {[%emt 0:01:25]} Bb7 {[%emt 0:00:58]} 22. Rac1 {[%emt 0:00:38]} Rc8 {[%emt 0:04:09]} 23. Nb1 {[%emt 0:03:21]} Nf6 {[%emt 0:03:34]} 24. Nc3 {[%emt 0:01:34]} Rd7 {[%emt 0:00:49]} 25. Ne2 {[%emt 0:01:25]} g6 {[%emt 0:02:33]} 26. Nf4 {[%emt 0:02:45]} Kg7 {[%emt 0:02:59]} 27. Rc2 {[%emt 0:00:38]} a5 {[%emt 0:03:05]} 28. Rdc1 {[%emt 0:02:16]} Rdc7 {[%emt 0:00:41]} 29. Nd3 {[%emt 0:00:29]} Nd7 {[%emt 0:00:15]} 30. Bg4 {[%emt 0:00:13]} f5 {[%emt 0:00:35]} 31. Bf3 {[%emt 0:00:09]} Kf7 {[%emt 0:01:19]} 32. Rd2 {[%emt 0:01:04]} Rd8 {[%emt 0:01:43]} 33. Rcd1 {[%emt 0:00:43]} Nb6 {[%emt 0:01:15]} 34. Nf4 {[%emt 0:01:27]} Rcd7 {[%emt 0:00:16]} 35. Nd3 {[%emt 0:01:10]} Rc7 {[%emt 0:00:13]} 36. Ne5+ {[%emt 0:00:28]} Ke6 {[%emt 0:00:52]} 37. Nc4 {[%emt 0:00:27]} Nxc4 {[%emt 0:00:56]} 38. bxc4 {[%emt 0:00:06]} Rcd7 {[%emt 0:00:19]} 39. Kf1 {[%emt 0:00:23]} Ba6 {[%emt 0:00:53]} 40. Be2 {[%emt 0:00:44]} Bxc4 {[%emt 0:01:47]} 41. Bxc4 {[%emt 0:30:44]} dxc4 {[%emt 0:30:08]} 42. Rxd7 {[%emt 0:01:05]} Rxd7 {[%emt 0:00:01]} 43. Rxd7 {[%emt 0:00:00]} Kxd7 {[%emt 0:00:00]} 44. Ke2 {[%emt 0:00:00]} Ke6 {[%emt 0:00:00]} 45. Kd2 {[%emt 0:00:00]} c3+ {[%emt 0:00:00]} 46. Kxc3 {[%emt 0:00:00]} Kd5 {[%emt 0:00:00]} 47. f3 {[%emt 0:00:00]} h6 {[%emt 0:00:00]} 48. a4 {[%emt 0:00:00]} c4 {[%emt 0:00:00]} 49. g3 {[%emt 0:00:00]} g5 {[%emt 0:00:00]} 50. g4 {[%emt 0:00:00]} f4 {[%emt 0:00:00]} 51. exf4 {[%emt 0:00:00]} gxf4 {[%emt 0:00:02]} 52. h4 {[%emt 0:00:00]} Kc5 {[%emt 0:01:55]} 53. g5 {[%emt 0:00:00]} hxg5 {[%emt 0:00:04]} 54. hxg5 {[%emt 0:00:00]} Kd5 1-0

[Event "EYTCC U18 Girls 2019"]
[Site "Pardubice"]
[Date "2019.07.15"]
[Round "5.41"]
[White "Jaufarally, Nadia"]
[Black "Pribylova, Sofie"]
[Result "1/2-1/2"]
[ECO "B90"]
[WhiteElo "1944"]
[BlackElo "2093"]
[Annotator "NA"]
[PlyCount "86"]
[EventDate "2019.07.11"]
[EventType "swiss"]
[EventCountry "CZE"]
[SourceTitle "playchess.com"]
[Source "ChessBase"]
[SourceQuality "1"]
[WhiteTeam "England"]
[BlackTeam "Czech Republic"]
[WhiteTeamCountry "ENG"]
[BlackTeamCountry "CZE"]
[TimeControl "40/5400+30:1800+30"]

1. e4 {[%emt 0:00:00]} c5 {[%emt 0:00:00]} 2. Nf3 {[%emt 0:00:00]} d6 {[%emt 0:00:00]} 3. d4 {[%emt 0:00:00]} cxd4 {[%emt 0:00:05]} 4. Nxd4 {[%emt 0:00:00]} Nf6 {[%emt 0:00:04]} 5. Nc3 {[%emt 0:00:15]} a6 {[%emt 0:00:12]} 6. Bd3 {[%emt 0:00:21]} g6 {[%emt 0:01:26]} 7. f3 {[%emt 0:04:20]} Bg7 {[%emt 0:07:04]} 8. Be3 {[%emt 0:02:31]} Nc6 {[%emt 0:25:53]} 9. Qd2 {[%emt 0:09:44]} Nxd4 {[%emt 0:02:28]} 10. Bxd4 {[%emt 0:00:16]} O-O {[%emt 0:01:10]} 11. O-O {[%emt 0:21:34]} Re8 {[%emt 0:06:07]} 12. Rfd1 {[%emt 0:09:18]} b5 {[%emt 0:06:17]} 13. a4 {[%emt 0:07:04]} b4 {[%emt 0:02:55]} 14. Na2 {[%emt 0:04:42]} a5 {[%emt 0:01:45]} 15. Bb5 {[%emt 0:01:07]} Bd7 {[%emt 0:00:29]} 16. c4 {[%emt 0:03:29]} Qc7 {[%emt 0:03:53]} 17. b3 {[%emt 0:02:12]} Rf8 {[%emt 0:05:11]} 18. Bxd7 {[%emt 0:10:27]} Nxd7 {[%emt 0:01:41]} 19. Bxg7 {[%emt 0:02:29]} Kxg7 {[%emt 0:00:02]} 20. Nc1 {[%emt 0:02:23]} f5 {[%emt 0:04:51]} 21. Qd4+ {[%emt 0:01:50]} Kg8 {[%emt 0:00:59]} 22. Qd5+ {[%emt 0:00:25]} Kh8 {[%emt 0:00:39]} 23. Qd4+ {[%emt 0:05:49]} Rf6 {[%emt 0:02:53]} 24. exf5 {[%emt 0:02:40]} gxf5 {[%emt 0:00:40]} 25. Ra2 {[%emt 0:02:16]} e5 {[%emt 0:08:15]} 26. Qe3 {[%emt 0:00:43]} Qc5 {[%emt 0:01:55]} 27. Qxc5 {[%emt 0:00:41]} Nxc5 {[%emt 0:00:03]} 28. Rad2 {[%emt 0:00:19]} Ra6 {[%emt 0:01:07]} 29. Rb2 e4 {[%emt 0:00:56]} 30. Ne2 {[%emt 0:04:20]} Nd3 {[%emt 0:05:10]} 31. Rbd2 {[%emt 0:00:35]} Nc5 {[%emt 0:03:05]} 32. Nd4 {[%emt 0:00:21]} Kg7 {[%emt 0:03:14]} 33. Rf1 {[%emt 0:02:49]} Ra8 {[%emt 0:02:18]} 34. Rb1 {[%emt 0:00:47]} Re8 {[%emt 0:01:53]} 35. Re1 {[%emt 0:01:06]} Kg6 {[%emt 0:02:13]} 36. f4 {[%emt 0:00:30]} Ra8 {[%emt 0:00:31]} 37. Re3 {[%emt 0:00:21]} Nd3 {[%emt 0:00:20]} 38. g3 {[%emt 0:00:21]} Rc8 {[%emt 0:00:30]} 39. Rc2 {[%emt 0:00:37]} Rf7 {[%emt 0:00:30]} 40. Ree2 {[%emt 0:00:34]} h5 {[%emt 0:00:23]} 41. Kf1 {[%emt 0:07:59]} Kf6 {[%emt 0:01:41]} 42. Red2 {[%emt 0:06:38]} Rg7 {[%emt 0:04:19]} 43. Nf3 {[%emt 0:06:06]} Rgc7 {[%emt 0:08:27]} 1/2-1/2

[Event "EYTCC U18 Girls 2019"]
[Site "Pardubice"]
[Date "2019.07.15"]
[Round "5.42"]
[White "Nemcova, Karin"]
[Black "Rahulan, Thivyaa"]
[Result "1-0"]
[ECO "C12"]
[WhiteElo "1956"]
[BlackElo "1878"]
[Annotator "NA"]
[PlyCount "83"]
[EventDate "2019.07.11"]
[EventType "swiss"]
[EventCountry "CZE"]
[SourceTitle "playchess.com"]
[Source "ChessBase"]
[SourceQuality "1"]
[WhiteTeam "Czech Republic"]
[BlackTeam "England"]
[WhiteTeamCountry "CZE"]
[BlackTeamCountry "ENG"]
[TimeControl "40/5400+30:1800+30"]

1. e4 {[%emt 0:00:00]} e6 {[%emt 0:00:00]} 2. d4 {[%emt 0:00:00]} d5 {[%emt 0:00:00]} 3. Nc3 {[%emt 0:00:00]} Nf6 {[%emt 0:00:00]} 4. Bg5 {[%emt 0:00:00]} Bb4 {[%emt 0:00:16]} 5. e5 {[%emt 0:00:00]} h6 {[%emt 0:00:54]} 6. Bd2 {[%emt 0:00:06]} Bxc3 {[%emt 0:00:14]} 7. bxc3 {[%emt 0:00:06]} Ne4 {[%emt 0:00:19]} 8. Qg4 {[%emt 0:00:11]} Kf8 {[%emt 0:00:41]} 9. Bd3 {[%emt 0:00:10]} Nxd2 {[%emt 0:01:22]} 10. Kxd2 {[%emt 0:00:08]} Qg5+ {[%emt 0:00:15]} 11. Qxg5 {[%emt 0:00:32]} hxg5 {[%emt 0:00:10]} 12. Nh3 {[%emt 0:07:54]} g4 {[%emt 0:01:23]} 13. Nf4 {[%emt 0:01:29]} g5 {[%emt 0:00:10]} 14. Ne2 {[%emt 0:00:42]} c5 {[%emt 0:00:54]} 15. Nc1 {[%emt 0:06:33]} Nc6 {[%emt 0:04:09]} 16. Ke3 {[%emt 0:07:33]} Bd7 {[%emt 0:15:03]} 17. Be2 {[%emt 0:04:07]} Rc8 {[%emt 0:06:43]} 18. Nd3 {[%emt 0:05:07]} b6 {[%emt 0:07:01]} 19. Rac1 {[%emt 0:08:20]} Ke7 {[%emt 0:03:32]} 20. f3 {[%emt 0:12:42]} gxf3 {[%emt 0:02:06]} 21. Bxf3 {[%emt 0:00:22]} Rh4 {[%emt 0:10:30]} 22. dxc5 {[%emt 0:09:17]} bxc5 {[%emt 0:00:13]} 23. g3 {[%emt 0:06:26]} Rhh8 {[%emt 0:01:59]} 24. Rb1 {[%emt 0:06:26]} c4 {[%emt 0:01:30]} 25. Nf2 {[%emt 0:05:24]} Nxe5 {[%emt 0:00:30]} 26. Rb7 {[%emt 0:00:17]} Nc6 {[%emt 0:04:46]} 27. h3 {[%emt 0:02:29]} f5 {[%emt 0:06:43]} 28. h4 {[%emt 0:03:08]} gxh4 {[%emt 0:02:12]} 29. gxh4 {[%emt 0:00:46]} Kd6 {[%emt 0:01:47]} 30. h5 {[%emt 0:00:52]} e5 {[%emt 0:02:15]} 31. Bxd5 {[%emt 0:02:32]} Kxd5 {[%emt 0:04:01]} 32. Rxd7+ {[%emt 0:00:12]} Ke6 {[%emt 0:00:08]} 33. Rhd1 {[%emt 0:04:05]} Nd4 {[%emt 0:05:06]} 34. Rxa7 {[%emt 0:00:29]} Nb5 {[%emt 0:03:32]} 35. Ra6+ {[%emt 0:00:38]} Ke7 {[%emt 0:01:39]} 36. Rd5 {[%emt 0:01:48]} f4+ {[%emt 0:00:20]} 37. Kf3 {[%emt 0:00:29]} Nxc3 {[%emt 0:07:28]} 38. Rxe5+ {[%emt 0:00:10]} Kd7 {[%emt 0:00:48]} 39. Rg5 {[%emt 0:02:36]} Rc7 {[%emt 0:07:41]} 40. Rg7+ {[%emt 0:01:49]} Kd8 {[%emt 0:00:33]} 41. h6 {[%emt 0:30:49]} Nxa2 {[%emt 0:04:39]} 42. Ra8+ {[%emt 0:00:00]} 1-0

[Event "EYTCC U18 Girls 2019"]
[Site "Pardubice"]
[Date "2019.07.16"]
[Round "6.25"]
[White "Salimova, Nurgyul"]
[Black "Lehaci, Miruna-Daria"]
[Result "1-0"]
[ECO "A05"]
[WhiteElo "2416"]
[BlackElo "2201"]
[Annotator "ChessBase"]
[PlyCount "127"]
[EventDate "2019.07.11"]
[EventType "swiss"]
[EventCountry "CZE"]
[SourceTitle "playchess.com"]
[Source "ChessBase"]
[SourceQuality "1"]
[WhiteTeam "Bulgaria"]
[BlackTeam "Romania"]
[WhiteTeamCountry "BUL"]
[BlackTeamCountry "ROU"]
[TimeControl "40/5400+30:1800+30"]

1. Nf3 {[%emt 0:00:00]} Nf6 {[%emt 0:00:00]} 2. g3 {[%emt 0:00:01]} b6 {[%emt 0:00:37]} 3. Bg2 {[%emt 0:00:05]} Bb7 {[%emt 0:00:04]} 4. c4 {[%emt 0:00:23]} c5 {[%emt 0:02:43]} 5. O-O {[%emt 0:00:09]} e6 {[%emt 0:00:09]} 6. b3 {[%emt 0:00:14]} Be7 {[%emt 0:00:27]} 7. Bb2 {[%emt 0:00:05]} O-O {[%emt 0:00:28]} 8. Nc3 {[%emt 0:02:02]} a6 {[%emt 0:08:31]} 9. d4 {[%emt 0:06:36]} cxd4 {[%emt 0:00:17]} 10. Qxd4 {[%emt 0:01:46]} Nc6 {[%emt 0:00:58]} 11. Qf4 {[%emt 0:00:53]} Qb8 {[%emt 0:01:58]} 12. Rfd1 {[%emt 0:04:45]} Rd8 {[%emt 0:11:05]} 13. Qxb8 {[%emt 0:07:58]} Raxb8 {[%emt 0:00:11]} 14. Ne1 {[%emt 0:12:44]} Na7 {[%emt 0:07:19]} 15. Bxb7 {[%emt 0:07:57]} Rxb7 {[%emt 0:00:06]} 16. Nd3 {[%emt 0:01:14]} b5 {[%emt 0:08:28]} 17. cxb5 {[%emt 0:04:05]} axb5 {[%emt 0:01:36]} 18. Rac1 {[%emt 0:04:42]} d5 {[%emt 0:05:56]} 19. Nb1 {[%emt 0:04:07]} b4 {[%emt 0:08:53]} 20. Nc5 {[%emt 0:18:06]} Rc7 {[%emt 0:09:31]} 21. Na4 {[%emt 0:01:46]} Rdc8 {[%emt 0:03:39]} 22. Rxc7 {[%emt 0:00:24]} Rxc7 {[%emt 0:00:04]} 23. Rc1 {[%emt 0:00:05]} Rxc1+ {[%emt 0:01:09]} 24. Bxc1 {[%emt 0:00:08]} Nb5 {[%emt 0:00:29]} 25. Kf1 {[%emt 0:05:29]} Kf8 {[%emt 0:03:45]} 26. Ke1 {[%emt 0:01:08]} Ke8 {[%emt 0:00:36]} 27. Bb2 {[%emt 0:04:52]} Kd7 {[%emt 0:05:49]} 28. Nd2 {[%emt 0:00:49]} g6 {[%emt 0:07:12]} 29. e3 {[%emt 0:01:36]} Ne8 {[%emt 0:05:54]} 30. Nf3 {[%emt 0:02:46]} f6 {[%emt 0:00:26]} 31. g4 {[%emt 0:01:28]} e5 {[%emt 0:01:18]} 32. Ke2 {[%emt 0:03:45]} Bd6 {[%emt 0:03:10]} 33. Ne1 {[%emt 0:00:49]} Ng7 {[%emt 0:01:08]} 34. g5 {[%emt 0:01:23]} f5 {[%emt 0:01:23]} 35. f4 {[%emt 0:01:35]} d4 {[%emt 0:00:17]} 36. fxe5 {[%emt 0:00:10]} Bxe5 {[%emt 0:00:21]} 37. Nf3 {[%emt 0:00:07]} Bd6 {[%emt 0:01:15]} 38. exd4 {[%emt 0:00:39]} Ne6 {[%emt 0:00:14]} 39. Nb6+ {[%emt 0:00:51]} Kc6 {[%emt 0:01:21]} 40. Nc4 {[%emt 0:00:39]} Bf4 {[%emt 0:00:14]} 41. h4 {[%emt 0:31:24]} Bg3 {[%emt 0:04:55]} 42. Ke3 {[%emt 0:00:00]} Nec7 {[%emt 0:02:34]} 43. Nce5+ {[%emt 0:00:00]} Kd6 {[%emt 0:00:52]} 44. Kd3 {[%emt 0:00:00]} Nd5 {[%emt 0:03:13]} 45. Kc4 {[%emt 0:00:00]} Nbc7 {[%emt 0:01:35]} 46. a3 {[%emt 0:00:00]} Ne3+ {[%emt 0:04:48]} 47. Kd3 {[%emt 0:00:00]} Ng2 {[%emt 0:03:37]} 48. axb4 {[%emt 0:00:00]} Nxh4 {[%emt 0:00:24]} 49. Kc4 {[%emt 0:00:00]} Nxf3 {[%emt 0:04:38]} 50. Nxf3 {[%emt 0:00:00]} Bf4 {[%emt 0:00:34]} 51. b5 {[%emt 0:00:00]} Ne6 {[%emt 0:00:32]} 52. Ba3+ {[%emt 0:01:42]} Kd7 {[%emt 0:00:39]} 53. Kd5 {[%emt 0:01:13]} Nxg5 {[%emt 0:04:23]} 54. Ne1 {[%emt 0:01:39]} Ne6 {[%emt 0:00:33]} 55. Nd3 {[%emt 0:00:20]} Nc7+ {[%emt 0:01:10]} 56. Kc4 {[%emt 0:00:01]} Bg3 {[%emt 0:02:43]} 57. Nc5+ {[%emt 0:00:16]} Ke8 {[%emt 0:00:19]} 58. b6 {[%emt 0:00:23]} Na8 {[%emt 0:00:03]} 59. Kb5 {[%emt 0:00:24]} h5 {[%emt 0:01:28]} 60. b7 {[%emt 0:00:22]} Nc7+ {[%emt 0:00:13]} 61. Kc6 {[%emt 0:00:16]} Nb5 {[%emt 0:00:46]} 62. Kxb5 {[%emt 0:00:19]} h4 {[%emt 0:00:04]} 63. Nd3 {[%emt 0:00:47]} h3 {[%emt 0:01:04]} 64. Ne5 {[%emt 0:00:10]} 1-0